bitfinex/quotes_BTCUSD_20251124
["timestamp","ask_amount","ask_price","bid_price","bid_amount"]
[1763962754249,2.0,87727.0,87718.0,0.03491]
[1763962754451,2.0,87727.0,87719.0,0.01954]
[1763962754975,1.29132058,87728.0,87719.0,0.01954]
[1763962754976,2.0,87723.0,87719.0,0.01954]
[1763962755122,2.00008953,87723.0,87719.0,0.01954]
[1763962755322,2.0,87722.0,87719.0,0.01954]
[1763962755606,2.323,87720.0,87719.0,0.01954]
[1763962755803,2.0,87719.0,87718.0,0.01537]
[1763962756142,2.0,87719.0,87718.0,0.03491]
[1763962756340,2.0,87719.0,87718.0,0.06553]
[1763962756542,0.323,87720.0,87719.0,0.001]
[1763962756718,0.323,87720.0,87719.0,0.01954]
[1763962756924,0.323,87720.0,87719.0,0.02054]
[1763962757825,0.323,87720.0,87719.0,0.05216]
[1763962762469,0.17706612,87720.0,87719.0,0.05216]
[1763962762981,0.17737732,87720.0,87719.0,0.05216]
[1763962763179,0.17737732,87720.0,87719.0,0.002]
[1763962763180,0.18134732,87720.0,87719.0,0.002]
[1763962764083,2.18611957,87720.0,87719.0,0.002]
[1763962764248,2.18611957,87720.0,87719.0,0.001]
[1763962765075,0.323,87717.0,87694.0,0.03062]
[1763962765275,0.323,87708.0,87694.0,0.03062]
[1763962766325,0.323,87708.0,87699.0,0.0158]
[1763962766724,0.323,87708.0,87707.0,0.03491]
[1763962766981,0.64566029,87720.0,87707.0,0.03491]
[1763962766982,0.323,87714.0,87707.0,0.03491]
[1763962767188,0.323,87710.0,87708.0,0.01954]
[1763962767443,0.32697,87708.0,87699.0,0.0158]
[1763962768010,0.323,87706.0,87699.0,0.0148]
[1763962768421,0.34089507,87708.0,87699.0,0.0148]
[1763962768619,0.323,87704.0,87699.0,0.0148]
[1763962768818,0.323,87704.0,87699.0,0.0158]
[1763962769043,0.323,87704.0,87699.0,0.04642]
[1763962769424,0.323,87704.0,87699.0,0.04742]
[1763962769628,0.323,87704.0,87699.0,0.0158]
[1763962770362,0.323,87704.0,87699.0,0.0148]
[1763962770566,0.323,87704.0,87700.0,0.03062]
[1763962770963,0.34089507,87708.0,87700.0,0.03062]
[1763962771189,0.323,87704.0,87700.0,0.03062]
[1763962771771,0.323,87704.0,87703.0,0.01954]
[1763962772372,0.34089507,87708.0,87703.0,0.01954]
[1763962772634,0.323,87704.0,87703.0,0.01954]
[1763962772757,0.323,87704.0,87702.0,0.01537]
[1763962772955,0.323,87704.0,87703.0,0.01954]
[1763962773152,0.323,87704.0,87700.0,0.002]
[1763962773354,0.323,87702.0,87700.0,0.001]
[1763962773983,0.323,87702.0,87694.0,0.01537]
[1763962774385,0.323,87702.0,87700.0,0.001]
[1763962775038,0.323,87702.0,87694.0,0.01537]
[1763962775240,0.323,87702.0,87694.0,0.01637]
[1763962775418,0.323,87702.0,87694.0,0.01737]
[1763962775764,0.323,87702.0,87694.0,0.04743]
[1763962776315,0.323,87702.0,87694.0,0.04643]
[1763962776814,0.323,87702.0,87700.0,0.001]
[1763962777191,0.323,87702.0,87694.0,0.04643]
[1763962777406,0.323,87702.0,87694.0,0.01537]
[1763962777618,0.323,87702.0,87694.0,0.01737]
[1763962777828,0.323,87702.0,87694.0,0.01637]
[1763962778174,0.323,87702.0,87700.0,0.001]
[1763962778356,0.323,87702.0,87694.0,0.01537]
[1763962778799,0.10351431,87703.0,87694.0,0.01537]
[1763962779002,0.64547775,87704.0,87702.0,0.0346]
[1763962779207,2.0,87711.0,87703.0,0.05118]
[1763962779411,2.0,87711.0,87704.0,0.03106]
[1763962779976,0.10351431,87709.0,87704.0,0.03106]
[1763962780177,0.10351431,87709.0,87702.0,0.01448]
[1763962780828,0.323,87708.0,87702.0,0.01448]
[1763962781395,0.323,87708.0,87707.0,0.02012]
[1763962781813,0.01789491,87708.0,87707.0,0.02012]
[1763962782396,0.323,87706.0,87694.0,0.01537]
[1763962782609,0.323,87703.0,87695.0,0.03106]
[1763962783053,0.323,87703.0,87702.0,0.0346]
[1763962783577,0.323,87703.0,87702.0,0.06566]
[1763962784191,0.323,87706.0,87702.0,0.06566]
[1763962784468,0.323,87706.0,87702.0,0.04554]
[1763962784691,0.323,87706.0,87705.0,0.02106]
[1763962785062,0.323,87706.0,87705.0,0.05038]
[1763962786037,0.01789491,87708.0,87705.0,0.05038]
[1763962786364,0.323,87706.0,87705.0,0.05038]
[1763962787150,0.01789491,87708.0,87694.0,0.01537]
[1763962787350,0.51634114,87704.0,87694.0,0.01537]
[1763962787672,0.51634114,87704.0,87694.0,0.04469]
[1763962788549,0.51634114,87704.0,87694.0,0.01537]
[1763962788756,0.51634114,87704.0,87703.0,0.01494]
[1763962788757,0.83934114,87704.0,87703.0,0.01494]
[1763962788957,0.323,87704.0,87694.0,0.01537]
[1763962790105,0.323,87704.0,87690.0,0.0148]
[1763962790106,0.83934114,87704.0,87690.0,0.0148]
[1763962791852,0.83934114,87704.0,87703.0,0.036]
[1763962792045,0.323,87704.0,87703.0,0.036]
[1763962793814,0.323,87704.0,87693.0,0.02932]
[1763962794020,0.323,87701.0,87693.0,0.02932]
[1763962794918,0.323,87701.0,87700.0,0.01494]
[1763962796163,0.323,87701.0,87700.0,0.01594]
[1763962796685,0.323,87701.0,87700.0,0.01694]
[1763962797078,0.323,87701.0,87700.0,0.002]
[1763962797627,0.323,87701.0,87700.0,0.00184922]
[1763962798645,2.0,87707.0,87700.0,0.05222922]
[1763962798952,0.51789534,87708.0,87701.0,0.02106]
[1763962798953,0.323,87704.0,87701.0,0.02106]
[1763962799144,0.323,87704.0,87701.0,0.05038]
[1763962799346,0.323,87704.0,87703.0,0.02106]
[1763962799899,0.323,87706.0,87703.0,0.05038]
[1763962800110,0.323,87704.0,87703.0,0.02932]
[1763962800310,0.323,87704.0,87697.0,0.01494]
[1763962800516,0.323,87704.0,87698.0,0.02932]
[1763962800707,0.323,87704.0,87703.0,0.02106]
[1763962801132,0.01789534,87708.0,87703.0,0.05038]
[1763962801133,2.0,87707.0,87703.0,0.05038]
[1763962801345,0.01789534,87708.0,87707.0,0.02106]
[1763962801745,0.01789534,87708.0,87707.0,0.05038]
[1763962801966,0.01789534,87708.0,87697.0,0.01494]
[1763962801967,0.323,87706.0,87697.0,0.01494]
[1763962802161,0.323,87706.0,87690.0,0.0148]
[1763962802162,0.323,87701.0,87690.0,0.0148]
[1763962802384,0.323,87699.0,87690.0,0.0148]
[1763962802601,0.323,87699.0,87691.0,0.02932]
[1763962802781,0.323,87699.0,87698.0,0.036]
[1763962802998,0.00328,87692.0,87690.0,0.0148]
[1763962803218,0.00328,87692.0,87687.0,0.01494]
[1763962803378,0.00328,87692.0,87682.0,0.01494]
[1763962803579,0.323,87687.0,87675.0,0.01531]
[1763962803789,0.10679431,87688.0,87672.0,0.01531]
[1763962803790,2.0,87684.0,87672.0,0.01531]
[1763962803995,2.0,87682.0,87672.0,0.01531]
[1763962804222,0.323,87681.0,87672.0,0.04543]
[1763962804518,0.323,87681.0,87677.0,0.03012]
[1763962804677,0.323,87681.0,87680.0,0.01988]
[1763962804874,0.323,87681.0,87672.0,0.01531]
[1763962805319,9.39e-05,87682.0,87677.0,0.03012]
[1763962805489,0.31626,87701.0,87681.0,0.01988]
[1763962805700,0.00024896,87718.0,87717.0,0.03231]
[1763962806315,0.00024896,87718.0,87717.0,0.01243]
[1763962806511,2.0,87726.0,87717.0,0.03231]
[1763962806852,2.000094,87726.0,87717.0,0.01243]
[1763962806993,2.0,87725.0,87717.0,0.01243]
[1763962807634,0.323,87724.0,87717.0,0.01243]
[1763962807827,2.0,87723.0,87717.0,0.01243]
[1763962808003,2.0,87723.0,87717.0,0.01343]
[1763962808211,2.0,87723.0,87717.0,0.01243]
[1763962809065,0.323,87720.0,87717.0,0.01243]
[1763962811796,0.323,87720.0,87714.0,0.01243]
[1763962812000,0.0142,87719.0,87709.0,0.01243]
[1763962812142,0.323,87718.0,87709.0,0.01243]
[1763962812546,0.03505,87710.0,87700.0,0.01183]
[1763962812753,0.323,87709.0,87700.0,0.01183]
[1763962812959,0.8602001,87720.0,87709.0,0.03231]
[1763962813160,0.323,87719.0,87716.0,0.01988]
[1763962813374,0.323,87719.0,87710.0,0.03012]
[1763962813580,0.323,87717.0,87700.0,0.01183]
[1763962813779,0.8602001,87710.0,87700.0,0.01183]
[1763962814187,0.323,87709.0,87700.0,0.01183]
[1763962814591,0.323,87709.0,87700.0,0.04195]
[1763962814900,0.323,87709.0,87708.0,0.03231]
[1763962815328,0.323,87719.0,87708.0,0.06243]
[1763962815539,0.323,87719.0,87708.0,0.04255]
[1763962815854,0.323,87719.0,87718.0,0.01988]
[1763962816003,0.31682778,87719.0,87718.0,0.01988]
[1763962817228,0.00034293,87726.0,87718.0,0.01988]
[1763962817416,0.50034293,87726.0,87719.0,0.01988]
[1763962817638,0.50034293,87726.0,87710.0,0.02280241]
[1763962817639,0.50034293,87726.0,87721.0,0.01988]
[1763962817801,0.00034293,87726.0,87721.0,0.01988]
[1763962818003,0.32334293,87726.0,87721.0,0.01988]
[1763962818753,0.32334293,87726.0,87721.0,0.05]
[1763962819128,0.323,87724.0,87721.0,0.05]
[1763962819335,0.323,87724.0,87722.0,0.03012]
[1763962819542,0.323,87724.0,87723.0,0.01988]
[1763962820573,0.00034293,87726.0,87723.0,0.01988]
[1763962820792,0.323,87724.0,87723.0,0.01988]
[1763962821006,0.323,87724.0,87709.0,0.02172932]
[1763962821220,0.323,87724.0,87723.0,0.01988]
[1763962821635,0.00034293,87726.0,87723.0,0.05]
[1763962821871,0.00034293,87726.0,87725.0,0.01988]
[1763962822215,0.323,87730.0,87727.0,0.01988]
[1763962822544,0.323,87730.0,87727.0,0.01243]
[1763962822697,0.34089139,87730.0,87728.0,0.03012]
[1763962823038,0.34089139,87730.0,87729.0,0.01988]
[1763962823386,0.01789139,87730.0,87729.0,0.05]
[1763962823584,0.01789139,87730.0,87729.0,0.01988]
[1763962823792,0.06843139,87730.0,87723.0,0.001]
[1763962824001,0.03874139,87730.0,87714.0,0.01243]
[1763962824243,0.323,87723.0,87714.0,0.012524]
[1763962824471,0.323,87723.0,87714.0,0.042644]
[1763962825356,0.323,87723.0,87714.0,0.043644]
[1763962826546,0.323,87723.0,87714.0,0.014524]
[1763962827319,0.323,87723.0,87714.0,0.013524]
[1763962827524,0.323,87723.0,87714.0,0.012524]
[1763962828349,0.8744001,87724.0,87714.0,0.012524]
[1763962828350,0.323,87719.0,87714.0,0.012524]
[1763962829761,0.323,87723.0,87714.0,0.012524]
[1763962829946,0.323,87721.0,87714.0,0.012524]
[1763962830147,0.323,87719.0,87714.0,0.012524]
[1763962830361,0.32246729,87719.0,87714.0,0.012524]
[1763962831432,2.0,87723.0,87714.0,0.012524]
[1763962831629,0.51620718,87724.0,87715.0,0.03012]
[1763962831843,0.51620718,87724.0,87723.0,0.01988]
[1763962832070,2.0,87729.0,87715.0,0.03012]
[1763962832334,0.10351431,87726.0,87715.0,0.03012]
[1763962832519,0.323,87725.0,87715.0,0.03012]
[1763962832691,1.35503482,87725.0,87714.0,0.012524]
[1763962832910,0.02969,87724.0,87714.0,9.4e-05]
[1763962833087,2.0,87724.0,87714.0,9.4e-05]
[1763962834816,0.323,87723.0,87714.0,9.4e-05]
[1763962835669,0.323,87723.0,87722.0,0.0199]
[1763962835996,0.323,87726.0,87714.0,9.4e-05]
[1763962836185,0.01789217,87723.0,87714.0,9.4e-05]
[1763962836344,0.34089217,87723.0,87714.0,9.4e-05]
[1763962836970,0.02962,87722.0,87714.0,9.4e-05]
[1763962838387,0.34089217,87723.0,87714.0,9.4e-05]
[1763962842419,0.34089217,87723.0,87722.0,0.0199]
[1763962842626,0.01789217,87723.0,87722.0,0.0199]
[1763962842834,0.01789217,87723.0,87714.0,0.029524]
[1763962843235,0.34089217,87723.0,87714.0,0.029524]
[1763962844005,0.34089217,87723.0,87714.0,0.030524]
[1763962844691,0.34089217,87723.0,87722.0,0.001]
[1763962844896,0.01789217,87723.0,87722.0,0.001]
[1763962845033,0.03786217,87723.0,87714.0,0.001094]
[1763962845235,0.36086217,87723.0,87714.0,0.001094]
[1763962845459,0.36086217,87723.0,87714.0,0.02489537]
[1763962845661,0.34089217,87723.0,87714.0,0.05387537]
[1763962846083,0.323,87723.0,87722.0,0.001]
[1763962846409,0.323,87723.0,87714.0,0.05387537]
[1763962846410,0.323,87727.0,87714.0,0.001094]
[1763962846582,0.323,87723.0,87714.0,0.031074]
[1763962847038,0.323,87723.0,87715.0,0.01084]
[1763962847509,0.323,87723.0,87722.0,0.01983]
[1763962847854,0.02935959,87743.0,87722.0,0.01983]
[1763962847855,0.323,87729.0,87722.0,0.02083]
[1763962848057,0.323,87727.0,87722.0,0.001]
[1763962848818,0.10351431,87728.0,87716.0,0.02998]
[1763962849015,1.03225958,87726.0,87717.0,0.02280059]
[1763962849539,0.01789196,87724.0,87718.0,0.02998]
[1763962849949,0.01789196,87724.0,87723.0,0.01983]
[1763962851939,0.01789196,87724.0,87723.0,0.02083]
[1763962852145,0.01789196,87724.0,87723.0,0.02183]
[1763962853600,0.01789196,87724.0,87723.0,0.002]
[1763962856409,0.06704196,87724.0,87723.0,0.002]
[1763962856639,2.39004196,87724.0,87723.0,0.002]
[1763962857528,2.36077196,87724.0,87723.0,0.002]
[1763962859335,2.34089196,87724.0,87723.0,0.002]
[1763962859540,2.323,87724.0,87723.0,0.002]
[1763962860501,2.37215,87724.0,87723.0,0.002]
[1763962861382,2.04915,87724.0,87714.0,9.4e-05]
[1763962861560,0.10351431,87721.0,87714.0,9.4e-05]
[1763962862013,0.01988,87715.0,87714.0,9.4e-05]
[1763962862812,0.02927,87718.0,87714.0,9.4e-05]
[1763962862926,0.01789327,87715.0,87714.0,9.4e-05]
[1763962863514,0.01789327,87715.0,87714.0,0.031024]
[1763962863756,0.01789327,87715.0,87714.0,0.05382537]
[1763962863943,0.01789327,87715.0,87714.0,0.08370537]
[1763962864264,0.01789327,87715.0,87714.0,0.08570537]
[1763962864462,0.01789327,87715.0,87714.0,0.08470537]
[1763962864667,0.01789327,87715.0,87714.0,0.08370537]
[1763962864887,0.01789327,87715.0,87714.0,0.08470537]
[1763962865098,0.01789327,87715.0,87714.0,0.08570537]
[1763962865902,0.51612979,87740.0,87714.0,0.08570537]
[1763962866192,0.323,87739.0,87731.0,0.03076]
[1763962866341,0.323,87739.0,87733.0,0.01863]
[1763962866541,0.01153981,87735.0,87733.0,0.01863]
[1763962866743,0.01153981,87735.0,87733.0,0.04851]
[1763962867762,0.01153981,87735.0,87733.0,0.04951]
[1763962868480,0.01153981,87735.0,87733.0,0.05051]
[1763962869452,0.323,87742.0,87733.0,0.05051]
[1763962870501,0.01153436,87739.0,87733.0,0.05051]
[1763962870720,0.323,87742.0,87733.0,0.05051]
[1763962871443,0.01501,87771.0,87733.0,0.05051]
[1763962871444,0.51612979,87750.0,87733.0,0.05051]
[1763962871645,0.01183904,87746.0,87733.0,0.05051]
[1763962871891,0.01183904,87746.0,87741.0,0.10351431]
[1763962872083,0.51612979,87750.0,87749.0,0.01177]
[1763962872211,0.323,87750.0,87749.0,0.0304]
[1763962872411,0.323,87750.0,87749.0,0.06028]
[1763962872612,0.01153554,87754.0,87749.0,0.06028]
[1763962872820,0.51612979,87759.0,87753.0,0.01863]
[1763962873054,0.00039244,87759.0,87758.0,0.01863]
[1763962873510,0.01305022,87759.0,87758.0,0.04851]
[1763962873712,0.00116998,87759.0,87758.0,0.04851]
[1763962874178,0.00116998,87759.0,87758.0,0.04345]
[1763962874538,0.01321135,87759.0,87758.0,0.04345]
[1763962874736,0.01321135,87759.0,87758.0,0.04545]
[1763962875543,0.01321135,87759.0,87758.0,0.02063]
[1763962875724,0.01321135,87759.0,87758.0,0.002]
[1763962876680,0.03109608,87759.0,87758.0,0.002]
[1763962877320,0.05127608,87759.0,87758.0,0.002]
[1763962877799,0.07911608,87759.0,87758.0,0.002]
[1763962878216,0.07911608,87759.0,87758.0,0.001]
[1763962879011,0.40211608,87759.0,87749.0,0.01177]
[1763962879322,0.00049767,87750.0,87749.0,0.01177]
[1763962879938,0.00049767,87750.0,87736.0,0.01177]
[1763962879939,0.04851767,87750.0,87736.0,0.01177]
[1763962880154,1.03225958,87746.0,87736.0,0.01177]
[1763962880542,1.03225958,87746.0,87720.0,0.01213]
[1763962880543,0.02018,87737.0,87720.0,0.01213]
[1763962880810,1.03225958,87730.0,87720.0,0.01213]
[1763962881230,0.01501,87755.0,87729.0,0.01863]
[1763962881435,0.51612979,87740.0,87731.0,0.01863]
[1763962881631,0.51612979,87740.0,87722.0,0.02411]
[1763962881803,0.51612979,87732.0,87722.0,0.02411]
[1763962882207,0.51612979,87732.0,87731.0,0.01863]
[1763962882407,1.03225958,87741.0,87731.0,0.01863]
[1763962883404,1.35525958,87741.0,87740.0,0.03061]
[1763962883614,0.323,87741.0,87740.0,0.03061]
[1763962884811,0.323,87741.0,87740.0,0.01198]
[1763962885063,0.323,87740.0,87735.0,0.01198]
[1763962885666,0.323,87740.0,87703.0,0.01198]
[1763962886029,0.323,87729.0,87718.0,0.02411]
[1763962886770,0.323,87729.0,87728.0,0.01863]
[1763962887005,1.03225958,87740.0,87728.0,0.01863]
[1763962887164,1.03225958,87740.0,87729.0,0.01863]
[1763962887906,0.51612979,87740.0,87729.0,0.01863]
[1763962888071,1.03225958,87740.0,87729.0,0.01863]
[1763962888850,1.03225958,87740.0,87720.0,0.01213]
[1763962889053,0.51612979,87730.0,87720.0,0.01213]
[1763962889204,0.51612979,87730.0,87721.0,0.02279955]
[1763962889410,0.51612979,87730.0,87729.0,0.01863]
[1763962889595,0.10351431,87739.0,87729.0,0.01863]
[1763962889790,0.10351431,87739.0,87722.0,0.02411]
[1763962889791,0.10351431,87739.0,87720.0,0.01213]
[1763962890043,0.51612979,87730.0,87720.0,0.01213]
[1763962890473,0.51612979,87730.0,87721.0,0.002]
[1763962890918,0.03519,87722.0,87721.0,0.002]
[1763962891248,0.06303,87722.0,87721.0,0.002]
[1763962891471,0.06303,87722.0,87721.0,0.001]
[1763962891767,0.06303,87722.0,87696.0,0.02541]
[1763962891979,0.02784,87721.0,87720.0,0.001]
[1763962892370,0.04802,87721.0,87703.0,0.012074]
[1763962892694,0.02018,87721.0,87703.0,0.012074]
[1763962892894,0.01501,87722.0,87704.0,0.02541]
[1763962893095,0.323,87712.0,87705.0,0.02280371]
[1763962893329,0.323,87712.0,87706.0,0.02541]
[1763962893504,0.323,87712.0,87711.0,0.01863]
[1763962894047,0.323,87720.0,87711.0,0.01863]
[1763962894250,0.323,87720.0,87712.0,0.01863]
[1763962894563,0.87526411,87722.0,87712.0,0.01863]
[1763962895877,0.87526411,87722.0,87703.0,0.012074]
[1763962895878,0.01973,87713.0,87703.0,9.4e-05]
[1763962896024,0.03467,87704.0,87703.0,9.4e-05]
[1763962896559,0.06484,87704.0,87703.0,9.4e-05]
[1763962897371,0.10351431,87709.0,87703.0,9.4e-05]
[1763962897571,2.0,87707.0,87703.0,9.4e-05]
[1763962898446,0.323,87706.0,87703.0,9.4e-05]
[1763962899029,0.323,87704.0,87703.0,9.4e-05]
[1763962899236,0.34273,87704.0,87703.0,9.4e-05]
[1763962901234,0.34373,87704.0,87703.0,9.4e-05]
[1763962901894,0.3739,87704.0,87703.0,9.4e-05]
[1763962903039,0.34373,87704.0,87703.0,9.4e-05]
[1763962905509,0.34373,87704.0,87697.0,0.011684]
[1763962905862,0.324,87704.0,87697.0,0.011684]
[1763962907725,0.323,87704.0,87697.0,0.011684]
[1763962907937,0.324,87704.0,87697.0,0.011684]
[1763962910965,0.0336,87698.0,87695.0,0.00169353]
[1763962911173,0.01977,87696.0,87695.0,0.00169353]
[1763962912867,0.01383,87698.0,87695.0,0.00169353]
[1763962913450,0.04179,87698.0,87695.0,0.00169353]
[1763962913800,0.01977,87696.0,87695.0,0.00169353]
[1763962913975,0.04773,87696.0,87695.0,0.00169353]
[1763962914787,0.33683,87698.0,87695.0,0.00169353]
[1763962914986,0.323,87696.0,87695.0,0.00169353]
[1763962916555,0.323,87698.0,87695.0,0.00169353]
[1763962916870,0.323,87696.0,87695.0,0.00169353]
[1763962919369,0.01977,87696.0,87695.0,0.00169353]
[1763962919558,0.04773,87696.0,87695.0,0.00169353]
[1763962922132,2.39211632,87696.0,87695.0,0.00169353]
[1763962923464,2.3641624,87696.0,87695.0,0.00169353]
[1763962923657,2.3443924,87696.0,87695.0,0.00169353]
[1763962924211,2.3628724,87696.0,87695.0,0.00169353]
[1763962924413,2.3900624,87696.0,87695.0,0.00169353]
[1763962927731,2.50528371,87696.0,87695.0,0.00169353]
[1763962927961,2.61812297,87696.0,87695.0,0.00169353]
[1763962928181,2.39086756,87696.0,87660.0,0.01205]
[1763962928345,2.39086756,87696.0,87660.0,0.00011779]
[1763962928346,0.10351431,87669.0,87660.0,0.00011779]
[1763962928572,0.0213924,87668.0,87660.0,0.00011779]
[1763962928768,0.0618424,87668.0,87660.0,0.00011779]
[1763962928973,0.01848,87661.0,87660.0,0.00011779]
[1763962929178,0.03987817,87661.0,87660.0,0.00011779]
[1763962929374,0.04567,87661.0,87660.0,0.00011779]
[1763962929575,0.06704832,87661.0,87660.0,0.00011779]
[1763962929915,2.39004832,87661.0,87660.0,0.00011779]
[1763962931177,2.36285832,87661.0,87660.0,0.00011779]
[1763962931733,2.39004832,87661.0,87660.0,0.00011779]
[1763962933409,2.36867,87661.0,87660.0,0.00011779]
[1763962934635,2.38998998,87661.0,87660.0,0.00011779]
[1763962935097,2.38998998,87661.0,87660.0,0.00120791]
[1763962935433,2.01848,87661.0,87660.0,0.00120791]
[1763962935635,0.01848,87661.0,87660.0,0.00120791]
[1763962935874,0.04567,87661.0,87660.0,0.00120791]
[1763962936099,0.002,87661.0,87660.0,0.00120791]
[1763962937075,2.0138,87667.0,87660.0,0.00120791]
[1763962937291,2.0,87666.0,87660.0,0.00011779]
[1763962938310,0.323,87663.0,87660.0,0.00011779]
[1763962938631,0.323,87661.0,87660.0,0.00011779]
[1763962939173,0.323,87661.0,87660.0,0.01996779]
[1763962939620,0.323,87664.0,87660.0,0.01996779]
[1763962939832,0.323,87662.0,87661.0,0.01205]
[1763962940332,0.323,87662.0,87661.0,0.01105]
[1763962940711,0.33462986,87668.0,87661.0,0.01105]
[1763962940917,0.323,87666.0,87661.0,0.01105]
[1763962941232,0.30486875,87664.0,87661.0,0.01105]
[1763962941592,2.0,87667.0,87661.0,0.01105]
[1763962941770,0.001,87664.0,87660.0,0.00011779]
[1763962942494,0.02819,87664.0,87660.0,0.00011779]
[1763962942658,0.02919,87664.0,87660.0,0.00011779]
[1763962942870,0.002,87664.0,87663.0,0.00099665]
[1763962943064,0.001,87664.0,87663.0,0.00109055]
[1763962943259,0.01948,87664.0,87663.0,0.00109055]
[1763962943466,2.04767,87664.0,87663.0,0.00109055]
[1763962944182,2.04667,87664.0,87663.0,0.00109055]
[1763962944757,2.04567,87664.0,87663.0,0.00109055]
[1763962945168,2.04667,87664.0,87663.0,0.00109055]
[1763962945451,2.04767,87664.0,87663.0,0.00109055]
[1763962945663,2.06897942,87664.0,87663.0,0.00109055]
[1763962947227,1.84964795,87664.0,87663.0,0.00109055]
[1763962947426,1.86812795,87664.0,87663.0,0.00109055]
[1763962947976,1.86813133,87664.0,87663.0,0.00109055]
[1763962951752,1.84681853,87664.0,87663.0,0.00109055]
[1763962952158,0.02333626,87664.0,87663.0,0.00109055]
[1763962952383,0.002,87664.0,87663.0,0.00109055]
[1763962952584,0.002,87664.0,87663.0,0.02094055]
[1763962954178,0.002,87664.0,87663.0,0.00109055]
[1763962954579,0.002,87664.0,87663.0,0.02012055]
[1763962956365,0.002,87664.0,87663.0,0.00109055]
[1763962963832,0.002,87664.0,87663.0,0.04883055]
[1763962964608,0.001,87664.0,87663.0,0.04883055]
[1763962964780,0.01162986,87668.0,87663.0,0.04883055]
[1763962964921,0.01162986,87668.0,87667.0,0.03132]
[1763962965127,2.0,87679.0,87667.0,0.05883]
[1763962965374,2.01157196,87679.0,87667.0,0.05883]
[1763962965576,2.0,87678.0,87668.0,0.02751]
[1763962966204,2.0,87676.0,87667.0,0.01253]
[1763962966434,2.0,87676.0,87668.0,0.02751]
[1763962966630,2.0,87678.0,87675.0,0.01879]
[1763962968432,2.0,87678.0,87677.0,0.01879]
[1763962968934,2.0,87678.0,87677.0,0.0463]
[1763962969633,2.0,87678.0,87668.0,0.02751]
[1763962969780,0.58719978,87678.0,87668.0,0.02751]
[1763962971003,0.58719978,87678.0,87667.0,0.01340203]
[1763962971004,0.01493,87677.0,87667.0,0.01340203]
[1763962971210,0.01493,87677.0,87667.0,0.01253]
[1763962971498,0.04468,87677.0,87667.0,0.01253]
[1763962971679,0.01493,87677.0,87667.0,0.01253]
[1763962972291,0.01493,87677.0,87663.0,9.39e-05]
[1763962972292,0.01493,87668.0,87663.0,9.39e-05]
[1763962972864,0.13326431,87676.0,87663.0,9.39e-05]
[1763962973411,0.12866431,87676.0,87663.0,9.39e-05]
[1763962973791,0.58719978,87678.0,87664.0,0.02751]
[1763962973995,0.58719978,87678.0,87675.0,0.0046]
[1763962974196,2.0,87678.0,87664.0,0.02751]
[1763962975471,0.3656389,87674.0,87664.0,0.02751]
[1763962975669,0.58719978,87674.0,87664.0,0.02751]
[1763962976521,0.02975,87673.0,87663.0,9.39e-05]
[1763962977058,0.02975,87673.0,87672.0,0.00071627]
[1763962977263,0.00948,87677.0,87672.0,0.00071627]
[1763962977400,0.10351431,87675.0,87663.0,9.39e-05]
[1763962977901,0.58719978,87673.0,87663.0,9.39e-05]
[1763962978218,0.58719978,87673.0,87663.0,0.0276039]
[1763962978601,0.10351431,87675.0,87663.0,0.0276039]
[1763962978602,2.0,87678.0,87672.0,0.03362]
[1763962978963,2.0,87679.0,87672.0,0.03362]
[1763962979764,2.0,87681.0,87672.0,0.03362]
[1763962980767,2.0134752,87681.0,87680.0,0.01879]
[1763962981200,0.001,87679.0,87672.0,0.01483]
[1763962981402,2.0,87678.0,87671.0,0.01483]
[1763962981820,0.0134752,87681.0,87677.0,0.01879]
[1763962981821,2.0,87680.0,87677.0,0.01879]
[1763962982042,0.60167498,87681.0,87680.0,0.01879]
[1763962982043,0.001,87681.0,87680.0,0.01879]
[1763962982380,0.01346711,87684.0,87680.0,0.01879]
[1763962982512,0.01346711,87684.0,87681.0,0.02751]
[1763962982712,0.51629424,87690.0,87683.0,0.01879]
[1763962982912,0.51629424,87693.0,87689.0,0.03234]
[1763962983135,1.03258848,87700.0,87692.0,0.03137]
[1763962983504,1.03258848,87700.0,87693.0,0.02751]
[1763962983722,1.04609467,87700.0,87693.0,0.02751]
[1763962983922,1.04609467,87700.0,87692.0,0.01358]
[1763962983923,0.01350619,87700.0,87692.0,0.01358]
[1763962984159,1.03258848,87703.0,87692.0,0.01358]
[1763962984160,0.60351431,87702.0,87692.0,0.01358]
[1763962984476,0.001,87700.0,87692.0,0.01358]
[1763962984681,0.323,87699.0,87692.0,0.01358]
[1763962985457,0.3301,87699.0,87692.0,0.01358]
[1763962985727,0.0081,87699.0,87689.0,0.01355]
[1763962985897,0.001,87699.0,87693.0,0.01258]
[1763962986604,0.01354674,87700.0,87693.0,0.01258]
[1763962986952,0.323,87699.0,87694.0,0.02966]
[1763962987161,0.324,87699.0,87694.0,0.02966]
[1763962987367,0.323,87699.0,87698.0,0.02001]
[1763962987802,0.323,87699.0,87693.0,0.01258]
[1763962988065,0.001,87699.0,87693.0,0.01258]
[1763962988534,0.0135454,87700.0,87693.0,0.01258]
[1763962988885,0.001,87699.0,87693.0,0.01258]
[1763962989485,2.0,87705.0,87693.0,0.01258]
[1763962989687,0.001,87700.0,87693.0,0.01258]
[1763962989922,0.002,87700.0,87693.0,0.01258]
[1763962990129,0.001,87700.0,87693.0,0.01258]
[1763962990636,0.001,87699.0,87693.0,0.01258]
[1763962990861,0.001,87700.0,87693.0,0.01258]
[1763962991265,0.001,87700.0,87693.0,0.04224]
[1763962991455,0.001,87699.0,87693.0,0.04224]